Cogmind - Beta 12 @@@ ROGUE MODE // 2023.11.21 @ 19:09:11 Player: Figgis Result: Destroyed by L-61 Swordsman with Power Sword Performance ------------- Evolutions (6) 3000 Regions Visited (16) 3200 Robots Destroyed (84) 420 Value Destroyed (2974) 2974 Prototype IDs (50) 1000 Alien Tech Used (2) 400 Bonus (611) 611 TOTAL SCORE: 11605 Bonus ------- High Alert Combat Kills 11 Aligned with FarCom 300 Met Zhirov 300 Cogmind --------- Core Integrity 0/1150 Matter 300/300 Energy 100/100 System Corruption 5% Temperature Cool (0) Movement Core (50) Location -4/Armory Parts ------- > --- POWER (2) -------- (None) > --- PROPULSION (8) --- (None) > --- UTILITY (7) ------ (None) > --- WEAPON (2) ------- (None) > --- INVENTORY (5) ---- Advanced Coolant Injector Advanced Weight Redist. System Microactuators PSU Rigger Peak State ------------ > --- POWER ------------ Light Fission Core Light Neutrino Core > --- PROPULSION ------- Cooled Nuclear Pulse Thruster Cooled Nuclear Pulse Thruster Cooled Nuclear Pulse Thruster Cooled Nuclear Pulse Thruster Nuclear Pulse Array Field Propulsion Array > --- UTILITY ---------- Advanced Heat Sink Medium Storage Unit Advanced Melee Analysis Suite Microactuators Improved Transmission Jammer Improved Propulsion Shielding Improved Shield Generator > --- WEAPON ----------- Chainsword Power Sword > --- INVENTORY -------- Light Fission Core Xenon Bombardment Thruster Xenon Bombardment Thruster Xenon Bombardment Thruster Nuclear Pulse Thruster Cooled Cesium-ion Thruster Advanced Coolant Injector Advanced Weight Redist. System PSU Rigger [Rating: 107] Favorites ----------- Power Enhanced Nuclear Core Engine Improved Ion Engine Power Core Enhanced Nuclear Core Reactor Antimatter Reactor Propulsion Aluminum Leg Treads Light Treads Leg Aluminum Leg Flight Unit Cesium-ion Thruster Utility High-capacity Storage Unit Device Advanced Heat Sink Storage High-capacity Storage Unit Processor Advanced Targeting Computer Hackware System Shield Protection Improved Propulsion Shielding Weapon Chainsword Energy Gun Medium Laser Energy Cannon Particle Cannon Ballistic Gun Minigun Launcher Rocket Launcher Impact Weapon Maul Slashing Weapon Chainsword Piercing Weapon Spear Build | -11 -10 -10 -9 -9 -9 -8 -8 -7 -6 -5 -5 -5 -5 -4 -4 -4 ------- Run | Jun Mat Min Mat Min Exi Min Mat Fac Fac Fac Upp Upp Zhi Pro Fac Arm Slots Evolved 12 | . . . 2 . . . 2 2 2 2 . . . . 2 . Power 1 | . . . . . . . . 1 . . . . . . . . Propulsion 6 | . . . 1 . . . 1 1 1 1 . . . . 1 . Utility 5 | . . . 1 . . . 1 . 1 1 . . . . 1 . Weapon . | . . . . . . . . . . . . . . . . . Parts Attached 151 | 3 5 . 23 . 3 5 27 27 14 17 . . 9 4 7 7 Power 21 | 1 . . 2 . 1 . 5 5 2 . . . 2 . 3 . Engine 7 | 1 . . 1 . . . 5 . . . . . . . . . Core 12 | . . . 1 . 1 . . 5 2 . . . 1 . 2 . Reactor 2 | . . . . . . . . . . . . . 1 . 1 . Propulsion 56 | 2 . . 7 . 1 2 11 9 6 9 . . . 1 2 6 Treads 2 | . . . 2 . . . . . . . . . . . . . Leg 24 | 2 . . 5 . 1 2 11 3 . . . . . . . . Wheel . | . . . . . . . . . . . . . . . . . Hover . | . . . . . . . . . . . . . . . . . Flight 30 | . . . . . . . . 6 6 9 . . . 1 2 6 Utility 42 | . 3 . 2 . 1 1 2 11 3 7 . . 7 2 2 1 Device 24 | . 1 . 1 . . 1 . 7 2 5 . . 5 1 . 1 Storage 6 | . 2 . 1 . . . . 1 . 1 . . 1 . . . Processor 4 | . . . . . 1 . 1 1 . . . . . . 1 . Hackware 1 | . . . . . . . . . . . . . . . 1 . Protection 7 | . . . . . . . 1 2 1 1 . . 1 1 . . Artifact . | . . . . . . . . . . . . . . . . . Weapon 32 | . 2 . 12 . . 2 9 2 3 1 . . . 1 . . Energy Gun 7 | . 2 . 2 . . . 3 . . . . . . . . . Energy Cannon 2 | . . . 1 . . . 1 . . . . . . . . . Ballistic Gun 12 | . . . 8 . . 1 3 . . . . . . . . . Ballistic Cannon . | . . . . . . . . . . . . . . . . . Launcher 2 | . . . 1 . . 1 . . . . . . . . . . Special Weapon . | . . . . . . . . . . . . . . . . . Impact Weapon 2 | . . . . . . . 2 . . . . . . . . . Slashing Weapon 6 | . . . . . . . . 2 3 . . . . 1 . . Piercing Weapon 1 | . . . . . . . . . . 1 . . . . . . Special Melee Weapon . | . . . . . . . . . . . . . . . . . Unidentified Prototypes 12 | . . . . . . . 1 1 1 2 . . 6 . 1 . Parts Lost 52 | . . . 6 . . . 17 7 . . . . . 3 6 13 Power 8 | . . . 1 . . . 3 . . . . . . . 2 2 Propulsion 24 | . . . 2 . . . 8 4 . . . . . . . 10 Utility 11 | . . . . . . . 1 3 . . . . . 2 4 1 Weapon 9 | . . . 3 . . . 5 . . . . . . 1 . . Highest Loss Streak 11 | . . . 5 . . . 9 3 . . . . . 3 3 11 To Critical Strikes . | . . . . . . . . . . . . . . . . . Average Slot Usage (%) 95 | . 97 100 98 100 100 100 96 96 99 93 94 94 92 86 85 49 Engine 3 | . 14 14 3 11 5 . 6 1 . . . . . . . . Core 7 | . . . 7 . 5 11 2 12 12 11 11 11 11 11 8 3 Leg 23 | . 28 28 31 33 33 33 33 26 . . . . . . . . Flight 10 | . . . . . . . . 8 40 38 35 35 35 35 30 20 Device 17 | . 13 14 22 22 16 11 9 16 20 28 29 29 26 20 17 6 Storage 8 | . 13 14 11 11 11 11 9 6 6 5 5 5 5 5 5 3 Processor 4 | . . . . . 5 11 14 2 . . . . . . 3 4 Protection 1 | . . . . . . . 2 3 6 . . . . 1 3 . Energy Gun 2 | . 26 28 . . . . 3 . . . . . . . . . Ballistic Gun 7 | . . . 19 22 22 16 7 . . . . . . . . . Impact Weapon 1 | . . . . . . . 1 4 . . . . . . . . Slashing Weapon 4 | . . . . . . . . 10 13 5 5 5 5 10 10 6 Naked Turns 8 | . . . . . . . . . . . . . . . . 8 Heaviest Build 71 | 3 28 28 56 55 55 55 58 71 36 40 40 40 40 40 46 51 Greatest Support 75 | 3 20 20 40 30 33 33 62 75 42 43 43 43 43 43 53 53 Greatest Overweight (x) 4 | . 1 1 2 1 1 2 4 2 . . . . . . . . Average Overweight (x) . | . . 1 . 1 1 1 . . . . . . . . . . Largest Inventory Capacity 20 | 5 15 15 20 20 20 20 20 20 10 10 10 10 10 10 10 10 Average Capacity 16 | 5 12 15 18 20 20 20 20 17 10 10 10 10 10 10 10 8 Most Carried 20 | 5 5 14 19 20 20 20 20 20 10 10 10 10 10 10 10 10 Average Carried 15 | 3 2 12 16 19 20 19 19 17 9 9 10 10 10 8 9 7 Final Capacity 20 | 5 15 15 20 20 20 20 20 10 10 10 10 10 10 10 10 5 Final Carried 20 | 5 3 14 19 20 20 20 20 10 10 10 10 10 10 7 10 4 Class Distribution -------------------- 45% | Mutant 25% | Scavenger-Mutant 10% | Sprinter 8% | Infiltrator-Sprinter 7% | Machinist-Sprinter Dominant Class ---------------- Mutant | -10/Materials Mutant | -10/Mines Mutant | -9/Materials Scavenger-Mutant | -9/Mines Mutant | -9/Exiles Mutant | -8/Mines Scavenger-Mutant | -8/Materials Mutant | -7/Factory Machinist-Sprinter | -6/Factory Infiltrator-Sprinter | -5/Factory Infiltrator-Sprinter | -5/Upper Caves Infiltrator-Sprinter | -5/Upper Caves Infiltrator-Sprinter | -5/Zhirov Sprinter | -4/Proximity Caves Sprinter | -4/Factory Sprinter | -4/Armory Resources | -11 -10 -10 -9 -9 -9 -8 -8 -7 -6 -5 -5 -5 -5 -4 -4 -4 ----------- Run | Jun Mat Min Mat Min Exi Min Mat Fac Fac Fac Upp Upp Zhi Pro Fac Arm Matter Collected 2508 | 167 . 113 569 39 . 195 603 302 65 240 17 2 . 48 148 . Remotely . | . . . . . . . . . . . . . . . . . Salvage Created 3206 | . . 80 636 . . 178 1365 785 11 115 . . . . 36 . Parts 175 | . . 6 50 . . 11 57 39 2 8 . . . . 2 . Haulers Intercepted 2 | . . . . . . . . 2 . . . . . . . . Recyclers Shooed . | . . . . . . . . . . . . . . . . . Parts Field Recycled . | . . . . . . . . . . . . . . . . . Retrieved Matter . | . . . . . . . . . . . . . . . . . Parts Self-Destructed 2 | . . . . . . . . . . . . 2 . . . . Prevented . | . . . . . . . . . . . . . . . . . Kills | -11 -10 -10 -9 -9 -9 -8 -8 -7 -6 -5 -5 -5 -5 -4 -4 -4 ------- Run | Jun Mat Min Mat Min Exi Min Mat Fac Fac Fac Upp Upp Zhi Pro Fac Arm Combat Hostiles Destroyed 64 | . . 2 18 . . 6 23 14 1 . . . . . . . Melee 13 | . . . . . . . 1 11 1 . . . . . . . Guns 27 | . . 2 14 . . 3 8 . . . . . . . . . Cannons 9 | . . . . . . . 9 . . . . . . . . . AOE 7 | . . . 4 . . 3 . . . . . . . . . . Classes Destroyed 15 | . . 1 6 . . . 4 3 1 . . . . . . . Worker 2 | . . . . . . . 1 1 . . . . . . . . Hauler 2 | . . . . . . . . 2 . . . . . . . . Recycler 1 | . . . . . . . 1 . . . . . . . . . Mechanic 1 | . . . 1 . . . . . . . . . . . . . Operator 5 | . . . 1 . . . . 2 . 2 . . . . . . Drone 1 | . . . . . . . . . 1 . . . . . . . Watcher 10 | . . . 2 . . . 4 1 . 2 . . . . 1 . Swarmer 14 | . . . 8 . . 3 . 3 . . . . . . . . Grunt 22 | . . 2 2 . . 3 12 3 . . . . . . . . Brawler 1 | . . . . . . . 1 . . . . . . . . . Duelist 1 | . . . 1 . . . . . . . . . . . . . Sentry 15 | . . . 7 . . . 8 . . . . . . . . . Specialist 2 | . . . . . . . 2 . . . . . . . . . Hunter 3 | . . . . . . . . 3 . . . . . . . . Programmer 5 | . . . . . . . . 5 . . . . . . . . Best Kill Streak 5 | . . 2 5 . . 3 4 2 1 1 . . . . 1 . Combat Bots Only 5 | . . 2 5 . . 3 4 2 1 . . . . . . . Max Kills in Single Turn 4 | . . 1 4 . . 3 1 1 1 1 . . . . 1 . Gunslinging . | . . . . . . . . . . . . . . . . . Exploded 3 | . . . 3 . . 3 . . . . . . . . . . Melee 1 | . . . . . . . 1 1 1 . . . . . . . Uniques/NPCs Destroyed . | . . . . . . . . . . . . . . . . . Combat | -11 -10 -10 -9 -9 -9 -8 -8 -7 -6 -5 -5 -5 -5 -4 -4 -4 -------- Run | Jun Mat Min Mat Min Exi Min Mat Fac Fac Fac Upp Upp Zhi Pro Fac Arm Damage Taken 8170 | . . 44 1249 . . 325 2292 980 270 38 28 . . 267 949 1728 Core 1977 | . . 10 274 . . 67 323 103 19 . . . . 12 188 981 Absorbed by Shields 476 | . . . . . . . . 255 . 6 10 . . 52 153 . Redirected to Shielding 202 | . . . . . . . . 44 57 . . . . 5 96 . Regen/Repaired (Parts) 111 | . . . 88 . . . . . . 23 . . . . . . Core Remaining (%) 75 | 100 . 96 . . . 14 41 85 97 . . . . 92 . . Volleys Fired 181 | . 1 5 71 . . 17 87 . . . . . . . . . Largest 2 | . 2 2 2 . . 2 2 . . . . . . . . . Hottest 124 | . 100 100 115 . . 56 124 . . . . . . . . . Shots Fired 352 | . 2 10 135 . . 34 171 . . . . . . . . . Gun 280 | . 2 10 126 . . 32 110 . . . . . . . . . Cannon 65 | . . . 4 . . . 61 . . . . . . . . . Launcher 7 | . . . 5 . . 2 . . . . . . . . . . Special . | . . . . . . . . . . . . . . . . . Kinetic 233 | . . . 124 . . 32 77 . . . . . . . . . Thermal 112 | . 2 10 6 . . . 94 . . . . . . . . . Explosive 7 | . . . 5 . . 2 . . . . . . . . . . Electromagnetic . | . . . . . . . . . . . . . . . . . Robot Hit Streak 19 | . 1 5 12 . . 14 19 . . . . . . . . . Robot Miss Streak 7 | . 1 2 7 . . 7 6 . . . . . . . . . Penetration Max . | . . . . . . . . . . . . . . . . . Secondary Targets 1 | . . . . . . 1 . . . . . . . . . . Max Gunslinging Chain 1 | . . . . . . 1 . . . . . . . . . . Shots Hit Robots 315 | . 1 8 81 . . 23 140 51 3 7 . . . . 1 . Core Hits 115 | . . 5 31 . . 11 50 15 . 2 . . . . 1 . Critical Kills 4 | . . . . . . . 2 2 . . . . . . . . Critical Parts Destroyed 8 | . . . 1 . . . 6 1 . . . . . . . . Critical Strikes 25 | . . 1 2 . . . 14 7 . 1 . . . . . . Burn 7 | . . 1 1 . . . 5 . . . . . . . . . Destroy 2 | . . . 1 . . . 1 . . . . . . . . . Smash 11 | . . . . . . . 8 3 . . . . . . . . Sever 5 | . . . . . . . . 4 . 1 . . . . . . Melee Attacks 256 | . . . . . . . 14 82 66 46 . . . 4 29 15 Impact 31 | . . . . . . . 14 17 . . . . . . . . Slashing 217 | . . . . . . . . 65 66 39 . . . 3 29 15 Piercing 8 | . . . . . . . . . . 7 . . . 1 . . Sneak Attacks 5 | . . . . . . . 1 4 . . . . . . . . Combat Hostiles 1 | . . . . . . . . 1 . . . . . . . . Follow-up Attacks 14 | . . . . . . . 3 7 2 2 . . . . . . Damage Inflicted 7828 | . 13 114 1706 . . 502 2748 2218 130 337 . . . . 48 12 Guns 3109 | . 13 114 1335 . . 348 1299 . . . . . . . . . Cannons 999 | . . . . . . . 999 . . . . . . . . . Explosions 525 | . . . 371 . . 154 . . . . . . . . . . Melee 3177 | . . . . . . . 444 2218 130 337 . . . . 48 . Ramming 18 | . . . . . . . 6 . . . . . . . . 12 Kinetic 2527 | . . . 1309 . . 348 870 . . . . . . . . . Thermal 1581 | . 13 114 26 . . . 1428 . . . . . . . . . Explosive 525 | . . . 371 . . 154 . . . . . . . . . . Electromagnetic . | . . . . . . . . . . . . . . . . . Impact 1075 | . . . . . . . 444 631 . . . . . . . . Slashing 2081 | . . . . . . . . 1587 130 316 . . . . 48 . Piercing 21 | . . . . . . . . . . 21 . . . . . . Highest Corruption 11 | . . . . . . . 1 9 . 1 1 1 1 11 5 5 Average Corruption 5 | . . . . . . . 1 7 . 1 1 1 1 9 1 5 Corruption Purged 9 | . . . . . . . . 9 . . . . . . . . Corruption Blocked . | . . . . . . . . . . . . . . . . . Effects 63 | . . . . . . . 1 47 . . . . 1 8 . 6 Message Errors 18 | . . . . . . . . 16 . . . . . . . 2 Matter Fused 12 | . . . . . . . 1 9 . . . . . 2 . . Heat Flow Errors 7 | . . . . . . . . 5 . . . . . 2 . . Energy Discharges 7 | . . . . . . . . 5 . . . . 1 1 . . Parts Rejected 2 | . . . . . . . . 1 . . . . . 1 . . Parts Fused 2 | . . . . . . . . 2 . . . . . . . . Data Loss (minor) 5 | . . . . . . . . 3 . . . . . 1 . 1 Data Loss (major) 5 | . . . . . . . . 4 . . . . . . . 1 Alerts 4 | . . . . . . . . 2 . . . . . . . 2 Misdirections 1 | . . . . . . . . . . . . . . 1 . . Overload Shots . | . . . . . . . . . . . . . . . . . Overflow Damage 642 | . . . 30 . . . 240 262 23 87 . . . . . . Projectiles . | . . . . . . . . . . . . . . . . . Explosions 30 | . . . 30 . . . . . . . . . . . . . Melee 612 | . . . . . . . 240 262 23 87 . . . . . . Knockbacks 4 | . . . . . . . . 4 . . . . . . . . Impact 4 | . . . . . . . . 4 . . . . . . . . Kinetic . | . . . . . . . . . . . . . . . . . Secondary . | . . . . . . . . . . . . . . . . . Self-Inflicted Damage 90 | . . . 85 . . . . . . . . . . . . 5 Shots 4 | . . . 4 . . . . . . . . . . . . . Rammed 5 | . . . . . . . . . . . . . . . . 5 Targets Rammed 7 | . . . . . . . 2 . . . . . . . . 5 Kicked 2 | . . . . . . . 2 . . . . . . . . . Crushed . | . . . . . . . . . . . . . . . . . Highest Temperature 308 | . 39 219 40 . . . 75 308 58 229 3 . . 198 . . Average Temperature 79 | . 20 112 13 . . . 29 94 19 92 3 . . 96 . . Received Heat Transfer 1936 | . . 24 273 . . 135 1179 71 48 . 12 . . . 80 114 Effects 3 | . . . . . . . . 2 . 1 . . . . . . Energy Bleed 1 | . . . . . . . . . . 1 . . . . . . Interference 2 | . . . . . . . . 2 . . . . . . . . Siege Activations . | . . . . . . . . . . . . . . . . . Robots Corrupted . | . . . . . . . . . . . . . . . . . Combat Hostiles . | . . . . . . . . . . . . . . . . . Parts Fried 5 | . . . . . . . 4 1 . . . . . . . . Impact Corruptions 17 | . . . . . . . 11 6 . . . . . . . . Robots Melted 1 | . . . . . . . 1 . . . . . . . . . Combat Hostiles 1 | . . . . . . . 1 . . . . . . . . . Parts Melted 14 | . . 1 . . . . 13 . . . . . . . . . Heat Transferred 3774 | . 37 407 148 . . . 3182 . . . . . . . . . Parts Sabotaged . | . . . . . . . . . . . . . . . . . Parts Stolen . | . . . . . . . . . . . . . . . . . Parts Stripped . | . . . . . . . . . . . . . . . . . Power Chain Reactions . | . . . . . . . . . . . . . . . . . Missiles Intercepted . | . . . . . . . . . . . . . . . . . Alert | -11 -10 -10 -9 -9 -9 -8 -8 -7 -6 -5 -5 -5 -5 -4 -4 -4 ------- Run | Jun Mat Min Mat Min Exi Min Mat Fac Fac Fac Upp Upp Zhi Pro Fac Arm Peak Influence 777 | . 29 60 287 111 . 77 425 208 455 303 . . . . 777 606 Initial 380 | . . 10 . 111 . . 11 154 101 222 . . . . 113 380 Average 140 | . 19 47 113 55 . 48 178 94 237 226 . . . . 343 444 Maximum Alert Level 3 | . . . 1 . . . 2 1 2 1 . . . . 3 2 Low Security (%) 71 | 100 100 100 83 100 . 100 47 96 36 14 . . . . 39 . Level 1 23 | . . . 16 . . . 51 3 54 85 . . . . 26 35 Level 2 3 | . . . . . . . 1 . 9 . . . . . 23 64 Level 3 . | . . . . . . . . . . . . . . . 10 . Level 4 . | . . . . . . . . . . . . . . . . . Level 5 . | . . . . . . . . . . . . . . . . . High Security . | . . . . . . . . . . . . . . . . . Max Security . | . . . . . . . . . . . . . . . . . Squads Dispatched 27 | . . . . . . . 6 9 5 1 . . . . 5 1 Investigation 10 | . . . . . . . 1 5 2 . . . . . 2 . Extermination 6 | . . . . . . . . 3 1 1 . . . . 1 . Reinforcement 8 | . . . . . . . 2 1 2 . . . . . 2 1 Assault . | . . . . . . . . . . . . . . . . . Garrison 3 | . . . . . . . 3 . . . . . . . . . Intercept . | . . . . . . . . . . . . . . . . . Searches Triggered 1 | . . . . . . . . . . . . . . . 1 . Construction Impeded . | . . . . . . . . . . . . . . . . . Haulers Reinforced 1 | . . . . . . . . 1 . . . . . . . . Active Scanning Responses . | . . . . . . . . . . . . . . . . . Cargo Convoy Interrupts 1 | . . . . . . . . . . 1 . . . . . . Stealth | -11 -10 -10 -9 -9 -9 -8 -8 -7 -6 -5 -5 -5 -5 -4 -4 -4 --------- Run | Jun Mat Min Mat Min Exi Min Mat Fac Fac Fac Upp Upp Zhi Pro Fac Arm Distress Signals 6 | . . . 1 . . . 3 1 1 . . . . . . . Communications Jammed 12 | . . . . . . . . . . . . . . . 9 3 Distress Signals 12 | . . . . . . . . . . . . . . . 9 3 Times Spotted 272 | . 1 2 34 . . 6 47 26 26 14 5 6 . 14 53 38 Peak Tracking Total 21 | . 1 2 7 . . 3 8 4 9 4 5 4 . 9 15 21 Tactical Retreats 42 | . . . . . . . 3 5 10 3 . 1 . 5 10 5 Traps | -11 -10 -10 -9 -9 -9 -8 -8 -7 -6 -5 -5 -5 -5 -4 -4 -4 ------- Run | Jun Mat Min Mat Min Exi Min Mat Fac Fac Fac Upp Upp Zhi Pro Fac Arm Traps Triggered 11 | . . . 3 . . . 2 1 1 2 . . . . . 2 Indirectly . | . . . . . . . . . . . . . . . . . Trap Hack Attempts . | . . . . . . . . . . . . . . . . . Triggered . | . . . . . . . . . . . . . . . . . Disarmed . | . . . . . . . . . . . . . . . . . Reprogrammed . | . . . . . . . . . . . . . . . . . Reused . | . . . . . . . . . . . . . . . . . Traps Extracted . | . . . . . . . . . . . . . . . . . Installed . | . . . . . . . . . . . . . . . . . Triggered 5 | . . . . . . . . . . 2 . 3 . . . . Most Traps Carried 4 | . . 4 4 4 4 4 4 . . . . . . . . . Exploded 1 | . . . . . 1 . . . . . . . . . . . Machines | -11 -10 -10 -9 -9 -9 -8 -8 -7 -6 -5 -5 -5 -5 -4 -4 -4 ---------- Run | Jun Mat Min Mat Min Exi Min Mat Fac Fac Fac Upp Upp Zhi Pro Fac Arm Machines Disabled 7 | . . . 3 . . 1 . . . . . . . . 1 2 Max in Single Turn 2 | . . . 2 . . 1 . . . . . . . . 1 1 Garrison Access 2 | . . . . . . . . 1 1 . . . . . . . Machines Repaired . | . . . . . . . . . . . . . . . . . Machines Sabotaged . | . . . . . . . . . . . . . . . . . Overloaded Fab Kills . | . . . . . . . . . . . . . . . . . Hacking | -11 -10 -10 -9 -9 -9 -8 -8 -7 -6 -5 -5 -5 -5 -4 -4 -4 --------- Run | Jun Mat Min Mat Min Exi Min Mat Fac Fac Fac Upp Upp Zhi Pro Fac Arm Machines Accessed 76 | . 2 . 6 . 1 . 3 12 16 16 . 1 8 . 10 1 Terminals 41 | . 2 . 5 . . . 2 5 9 12 . . . . 6 . Fabricators 9 | . . . . . . . . 3 2 1 . . . . 2 1 Repair Stations 3 | . . . 1 . . . . . 1 1 . . . . . . Recycling Units 2 | . . . . . . . . 2 . . . . . . . . Scanalyzers 3 | . . . . . . . 1 . 1 1 . . . . . . Garrison Access 8 | . . . . . . . . 2 3 1 . . . . 2 . Total Hacks 186 | . 4 . 13 . 1 . 8 20 32 37 . 1 47 . 21 2 Successful 101 | . 1 . 4 . 1 . 3 9 13 14 . 1 47 . 7 1 Failed 85 | . 3 . 9 . . . 5 11 19 23 . . . . 14 1 Catastrophic 23 | . . . . . . . . 6 4 9 . . . . 3 1 Database Lockouts . | . . . . . . . . . . . . . . . . . Manual 56 | . 3 . 7 . 1 . 2 2 9 24 . . . . 8 . Terminals 88 | . 4 . 10 . . . 5 8 17 29 . . . . 15 . Fabricators 17 | . . . . . . . . 6 4 2 . . . . 3 2 Repair Stations 8 | . . . 3 . . . . . 3 2 . . . . . . Recycling Units 3 | . . . . . . . . 3 . . . . . . . . Scanalyzers 8 | . . . . . . . 3 . 2 3 . . . . . . Garrison Access 13 | . . . . . . . . 3 6 1 . . . . 3 . Terminal Hacks 63 | . . . 2 . 1 . 1 1 5 2 . 1 47 . 3 . Record 37 | . . . . . . . . . 1 . . 1 35 . . . Part Schematic 5 | . . . . . . . . . . . . . 4 . 1 . Robot Analysis 6 | . . . 1 . . . . 1 . . . . 4 . . . Prototype ID Bank 7 | . . . . . . . 1 . 1 1 . . 4 . . . Open DSF 1 | . . . . . . . . . 1 . . . . . . . Branch Access Points 2 | . . . . . . . . . . 1 . . . . 1 . Alert Level 1 | . . . . . . . . . 1 . . . . . . . Locate Traps 2 | . . . . . . . . . 1 . . . . . 1 . Hauler Manifests 1 | . . . 1 . . . . . . . . . . . . . EX-Prototype ID Bank 1 | . . . . . 1 . . . . . . . . . . . Fabricator Hacks 11 | . . . . . . . . 6 2 1 . . . . 1 1 Network Status 2 | . . . . . . . . . 1 . . . . . 1 . Load Schematic 6 | . . . . . . . . 3 1 1 . . . . . 1 Build 3 | . . . . . . . . 3 . . . . . . . . Repair Station Hacks 5 | . . . 2 . . . . . 1 2 . . . . . . Scan Component 3 | . . . 1 . . . . . 1 1 . . . . . . Repair 2 | . . . 1 . . . . . . 1 . . . . . . Recycling Unit Hacks 1 | . . . . . . . . 1 . . . . . . . . Report Inventory 1 | . . . . . . . . 1 . . . . . . . . Scanalyzer 6 | . . . . . . . 2 . 2 2 . . . . . . Insert Component 3 | . . . . . . . 1 . 1 1 . . . . . . Analyze 3 | . . . . . . . 1 . 1 1 . . . . . . Garrison Access Hacks 2 | . . . . . . . . 1 1 . . . . . . . Seal Access 2 | . . . . . . . . 1 1 . . . . . . . Unauthorized Hacks 13 | . 1 . . . . . . . 2 7 . . . . 3 . Terminals 13 | . 1 . . . . . . . 2 7 . . . . 3 . Botnet 13 | . 1 . . . . . . . 2 7 . . . . 3 . Fabricators . | . . . . . . . . . . . . . . . . . Repair Stations . | . . . . . . . . . . . . . . . . . Recycling Units . | . . . . . . . . . . . . . . . . . Scanalyzers . | . . . . . . . . . . . . . . . . . Garrison Access . | . . . . . . . . . . . . . . . . . Data Cores Recovered 5 | . . . 1 . . . . 2 . 2 . . . . . . Used 1 | . . . . . . . . . . 1 . . . . . . Hacking Detections 56 | . 2 . 6 . . . 3 10 14 13 . . . . 7 1 Full Trace Events 8 | . . . . . . . . 5 2 . . . . . 1 . Feedback Events 1 | . . . . . . . . 1 . . . . . . . . Corruption 1 | . . . . . . . . 1 . . . . . . . . Feedback Blocked . | . . . . . . . . . . . . . . . . . Robot Schematics Acquired . | . . . . . . . . . . . . . . . . . Robots Built . | . . . . . . . . . . . . . . . . . Authchips . | . . . . . . . . . . . . . . . . . Time . | . . . . . . . . . . . . . . . . . Total Robot Build Rating . | . . . . . . . . . . . . . . . . . Part Schematics Acquired 8 | . . . . . . . 1 . 1 1 . . 4 . 1 . Parts Built 6 | . . . . . . . . 6 . . . . . . . . Authchips . | . . . . . . . . . . . . . . . . . Time 219 | . . . . . . . . 219 . . . . . . . . Total Part Build Rating 18 | . . . . . . . . 18 . . . . . . . . Parts Repaired 2 | . . . 1 . . . . . . 1 . . . . . . Time 70 | . . . 26 . . . . . . 44 . . . . . . Parts Recycled . | . . . . . . . . . . . . . . . . . Recycled Matter . | . . . . . . . . . . . . . . . . . Retrieved Matter . | . . . . . . . . . . . . . . . . . Retrieved Components . | . . . . . . . . . . . . . . . . . Parts Scanalyzed 3 | . . . . . . . 1 . 1 1 . . . . . . Part Schematics Acquired 3 | . . . . . . . 1 . 1 1 . . . . . . Parts Damaged . | . . . . . . . . . . . . . . . . . Bothacking | -11 -10 -10 -9 -9 -9 -8 -8 -7 -6 -5 -5 -5 -5 -4 -4 -4 ------------ Run | Jun Mat Min Mat Min Exi Min Mat Fac Fac Fac Upp Upp Zhi Pro Fac Arm Used RIF Installer . | . . . . . . . . . . . . . . . . . Robots Hacked . | . . . . . . . . . . . . . . . . . Non-combat . | . . . . . . . . . . . . . . . . . Combat . | . . . . . . . . . . . . . . . . . Robot Hacks Applied . | . . . . . . . . . . . . . . . . . Relay Couplers Released 3 | . . . . . . . . 3 . . . . . . . . Programmers 3 | . . . . . . . . 3 . . . . . . . . Fabnet Peak Effective % . | . . . . . . . . . . . . . . . . . Robots Rewired . | . . . . . . . . . . . . . . . . . Allies Hacked . | . . . . . . . . . . . . . . . . . Hacks Repelled . | . . . . . . . . . . . . . . . . . Allies | -11 -10 -10 -9 -9 -9 -8 -8 -7 -6 -5 -5 -5 -5 -4 -4 -4 -------- Run | Jun Mat Min Mat Min Exi Min Mat Fac Fac Fac Upp Upp Zhi Pro Fac Arm Total Allies . | . . . . . . . . . . . . . . . . . Largest Group . | . . . . . . . . . . . . . . . . . Highest-Rated Group . | . . . . . . . . . . . . . . . . . Highest-Rated Ally . | . . . . . . . . . . . . . . . . . Total Orders . | . . . . . . . . . . . . . . . . . Ally Attacks . | . . . . . . . . . . . . . . . . . Total Damage . | . . . . . . . . . . . . . . . . . Kills . | . . . . . . . . . . . . . . . . . Allies Corrupted . | . . . . . . . . . . . . . . . . . Allies Melted . | . . . . . . . . . . . . . . . . . Intel | -11 -10 -10 -9 -9 -9 -8 -8 -7 -6 -5 -5 -5 -5 -4 -4 -4 ------- Run | Jun Mat Min Mat Min Exi Min Mat Fac Fac Fac Upp Upp Zhi Pro Fac Arm Robot Analysis Total 6 | . . . 1 . . . . 1 . . . . 4 . . . Derelict Logs Recovered 6 | . . . . 1 . . . . . . 1 2 . 2 . . Drone Launches . | . . . . . . . . . . . . . . . . . Drone Recoveries . | . . . . . . . . . . . . . . . . . Exploration | -11 -10 -10 -9 -9 -9 -8 -8 -7 -6 -5 -5 -5 -5 -4 -4 -4 ------------- Run | Jun Mat Min Mat Min Exi Min Mat Fac Fac Fac Upp Upp Zhi Pro Fac Arm Turns Passed 11415 | 26 215 495 1521 792 480 899 1637 2584 679 884 88 118 65 125 588 219 Spaces Moved 14501 | 31 115 243 630 404 232 393 672 2289 2350 2856 411 559 177 521 2047 571 Core 137 | 31 4 . . . . . . 21 . . . . . . . 81 Treads 16 | . . . 16 . . . . . . . . . . . . . Legs 3638 | . 111 243 614 404 232 393 672 969 . . . . . . . . Wheels . | . . . . . . . . . . . . . . . . . Hover . | . . . . . . . . . . . . . . . . . Flight 10710 | . . . . . . . . 1299 2350 2856 411 559 177 521 2047 490 Fastest Speed 19 | 50 50 190 120 190 190 190 122 23 20 19 21 21 21 21 21 23 Average Speed 60 | 50 154 190 191 190 190 190 180 77 20 20 21 21 21 21 21 29 Slowest Speed 400 | 50 190 190 260 190 190 260 400 196 22 23 21 21 21 21 26 50 Overloaded Moves . | . . . . . . . . . . . . . . . . . Propulsion Burnouts . | . . . . . . . . . . . . . . . . . Robots Hopped 49 | . . . . . . . . 2 4 15 1 . . 4 20 3 Cave-ins Triggered 2 | . . . . . . . . . . . . . . 1 1 . Teleports 1 | . . . . . . . . . . . . . 1 . . . Exploration Rate (%) 55 | 3 31 60 61 91 59 59 57 53 61 46 63 79 62 77 45 34 Regions Visited 16 Branch Regions 9 Pre-discovered Areas 8 | . . . . 2 . . . . . . 1 1 3 1 . . Known Exits Taken 2 | . . . . . . . . . . 1 . . . . 1 . Unknown Exits Taken 14 | 1 1 1 1 1 1 1 1 1 1 . 1 1 1 1 . . Scrap Searched 11 | . . 2 . 1 . 1 . . . . 2 4 . 1 . . Spaces Dug 122 | . . . . . . . . 11 48 26 . . . 3 24 10 Terrain Destroyed 186 | . . . 39 . . 25 . 11 48 26 . . . 3 24 10 Melee 122 | . . . . . . . . 11 48 26 . . . 3 24 10 Projectile . | . . . . . . . . . . . . . . . . . AOE 64 | . . . 39 . . 25 . . . . . . . . . . Terrain Rammed . | . . . . . . . . . . . . . . . . . Walls Destroyed . | . . . . . . . . . . . . . . . . . Machines Disabled . | . . . . . . . . . . . . . . . . . Actions | -11 -10 -10 -9 -9 -9 -8 -8 -7 -6 -5 -5 -5 -5 -4 -4 -4 --------- Run | Jun Mat Min Mat Min Exi Min Mat Fac Fac Fac Upp Upp Zhi Pro Fac Arm Total 16394 | 41 151 267 838 429 271 513 905 2988 2450 3106 411 558 203 528 2134 601 Wait 1178 | . 28 9 76 25 35 91 64 564 22 186 . . 7 4 62 5 Move 14390 | 30 114 242 629 403 231 392 671 2284 2341 2825 408 558 176 512 2009 565 Hop 45 | . . . . . . . . 2 4 15 1 . . 3 17 3 Pick Up 131 | 8 2 11 27 1 1 3 29 24 6 8 1 . . 1 9 . Fast Attach 29 | . 1 . 2 . . . 1 6 4 3 . . 11 . . 1 Attach 70 | 3 3 . 13 . . . 18 9 2 7 . . . 4 5 6 Detach 4 | . . . . . . . . 1 . 3 . . . . . . Swap 54 | . 1 . 8 . 3 5 8 12 8 7 . . . . 2 . Drop 91 | . 1 . 12 . 1 5 15 17 10 13 1 . 9 . 4 3 Fire 181 | . 1 5 71 . . 17 87 . . . . . . . . . Melee 213 | . . . . . . . 10 69 53 39 . . . 3 26 13 Ram 5 | . . . . . . . . . . . . . . . . 5 Kick 2 | . . . . . . . 2 . . . . . . . . . Crush . | . . . . . . . . . . . . . . . . . Escape Stasis 1 | . . . . . . . . . . . . . . 1 . . Rewire . | . . . . . . . . . . . . . . . . . Trap . | . . . . . . . . . . . . . . . . . Miscellaneous . | . . . . . . . . . . . . . . . . . Route ------- -11/Junkyard -10/Materials -10/Mines -9/Materials (discovered 3 exits: *Mat / [*Min] / [*Sto]) -9/Mines (discovered 4 exits: *Mat x2 / *Exi / [*Zio]) -9/Exiles -8/Mines -8/Materials -7/Factory -6/Factory (discovered 3 exits: *Fac x2 / [*Low]) -5/Factory (discovered 3 exits: *Fac / *Upp x2) -5/Upper Caves -5/Upper Caves -5/Zhirov -4/Proximity Caves -4/Factory (discovered 7 exits: [*Res x2] / *Upp x2 / Ext x2 / *Arm) -4/Armory History --------- Turn | Location | Event 10 | -11/Junkyard | Discovered new exit (range 16) 27 | -11/Junkyard | Entered Materials 210 | -10/Materials | Discovered new exit (range 10) 242 | -10/Materials | Entered Mines 309 | -10/Mines | Build established: Mutant 311 | -10/Mines | Found a hidden stash of uninstalled traps 351 | -10/Mines | Discovered new exit (range 8) 605 | -10/Mines | Received a Rocket Launcher from a helpful Derelict 737 | -10/Mines | Entered Materials 737 | -9/Materials | Evolved 2 slots: Propulsion x1, Utility x1 1313 | -9/Materials | Discovered new exit (range 16) 1469 | -9/Materials | Repaired Aluminum Leg 1617 | -9/Materials | Discovered new exit (range 7) 1786 | -9/Materials | Lost 5 parts (1p1n3w) 1879 | -9/Materials | Core integrity fell below 50% 2088 | -9/Materials | Build established: Scavenger-Mutant 2234 | -9/Materials | Discovered new exit (range 7) 2258 | -9/Materials | Entered Mines 2269 | -9/Mines | Met a Derelict bent on vengeance 2537 | -9/Mines | Learned location of Recycling (-9) 2538 | -9/Mines | Learned location of Storage (-9) 2638 | -9/Mines | Discovered new exit (range 5) 3017 | -9/Mines | A Derelict revealed a hidden shortcut to a safe place 3020 | -9/Mines | Discovered new exit (range 8) 3041 | -9/Mines | Deemed a non-threat by the Exiles lab entrance 3043 | -9/Mines | Discovered new exit (range 5) 3050 | -9/Mines | Entered Exiles 3094 | -9/Exiles | Met 8R-AWN 3126 | -9/Exiles | Met EX-HEX 3180 | -9/Exiles | Met EX-BIN 3233 | -9/Exiles | Aligned with FarCom system 3235 | -9/Exiles | Given EX-Vault access code 3278 | -9/Exiles | Opened EX-Vault 3295 | -9/Exiles | Found PSU Rigger 3338 | -9/Exiles | Warned to stay clear of 0b10 Research branches 3361 | -9/Exiles | Exiles lab attacked by MAIN.C 3473 | -9/Exiles | Discovered new exit (range 11) 3530 | -9/Exiles | Left Exiles lab with PSU Rigger 3530 | -9/Exiles | Entered Mines 3595 | -8/Mines | Build established: Mutant 4320 | -8/Mines | Core integrity fell below 20% 4376 | -8/Mines | Discovered new exit (range 8) 4429 | -8/Mines | Entered Materials 4429 | -8/Materials | Evolved 2 slots: Propulsion x1, Utility x1 4808 | -8/Materials | Build established: Scavenger-Mutant 5349 | -8/Materials | Lost 3 parts (2n1w) 5826 | -8/Materials | Garrison activated, responded to threat 5883 | -8/Materials | Core integrity fell below 50% 5895 | -8/Materials | Lost 9 parts (2p4n3w) 6019 | -8/Materials | Discovered new exit (range 4) 6066 | -8/Materials | Entered Factory 6066 | -7/Factory | Evolved 2 slots: Power x1, Propulsion x1 6253 | -7/Factory | Build established: Mutant 7395 | -7/Factory | Fabricated Cesium-ion Thruster? 7457 | -7/Factory | Lost 3 parts (2n1u) 7962 | -7/Factory | Fabricated Cesium-ion Thruster (x2) 8400 | -7/Factory | Fabricated Cesium-ion Thruster? 8630 | -7/Factory | Discovered new exit (range 5) 8650 | -7/Factory | Entered another Factory area 8650 | -6/Factory | Evolved 2 slots: Propulsion x1, Utility x1 8875 | -6/Factory | Build established: Machinist-Sprinter 8984 | -6/Factory | Discovered new exit (range 16) 9050 | -6/Factory | Discovered new exit (range 8) 9326 | -6/Factory | Discovered new exit (range 15) 9329 | -6/Factory | Entered another Factory area 9329 | -5/Factory | Evolved 2 slots: Propulsion x1, Utility x1 9719 | -5/Factory | Discovered new exit (range 8) 9824 | -5/Factory | Build established: Infiltrator-Sprinter 9860 | -5/Factory | Discovered new exit (range 5) 9957 | -5/Factory | Repaired Xenon Bombardment Thruster 9962 | -5/Factory | Spotted B-75 Beast 10161 | -5/Factory | Discovered new exit (range 7) 10166 | -5/Factory | Cargo convoy interrupted 10172 | -5/Factory | Identified exit to Upper Caves 10213 | -5/Factory | Entered Upper Caves 10214 | -5/Upper Caves | Learned location of Warlord (-4) 10278 | -5/Upper Caves | Discovered new exit (range 7) 10286 | -5/Upper Caves | Encountered a Warlord checkpoint 10301 | -5/Upper Caves | Entered another Upper Caves area 10410 | -5/Upper Caves | Learned 4 Factory zone layouts 10416 | -5/Upper Caves | Discovered new exit (range 11) 10418 | -5/Upper Caves | Encountered a Warlord checkpoint 10419 | -5/Upper Caves | Entered Zhirov 10419 | -5/Zhirov | Discovered new exit (range 3) 10423 | -5/Zhirov | Met Zhirov 10427 | -5/Zhirov | Learned location of Quarantine (-2) 10427 | -5/Zhirov | Learned location of Testing (-3) 10427 | -5/Zhirov | Learned location of Command (-1) 10431 | -5/Zhirov | Zhirov requested help retrieving the SGEMP Prototype 10436 | -5/Zhirov | Found Alien Artifact 10436 | -5/Zhirov | Identified Integrated Dissipator 10436 | -5/Zhirov | Installed Integrated Dissipator, increased core heat dissipation (+20) 10469 | -5/Zhirov | Found Alien Artifact 10469 | -5/Zhirov | Identified Transdimensional Reconstructor 10469 | -5/Zhirov | Warped through subspace 10484 | -5/Zhirov | Entered Proximity Caves 10499 | -4/Proximity Caves | Crushed by falling debris 10500 | -4/Proximity Caves | System corruption reached 10% 10530 | -4/Proximity Caves | Lost 3 parts (2u1w) 10571 | -4/Proximity Caves | Spotted B-86 Titan 10580 | -4/Proximity Caves | Learned 8 Research zone layouts 10603 | -4/Proximity Caves | Discovered new exit (range 9) 10609 | -4/Proximity Caves | Entered Factory 10609 | -4/Factory | Evolved 2 slots: Propulsion x1, Utility x1 10720 | -4/Factory | Discovered new exit (range 13) 10727 | -4/Factory | Discovered new exit (range 15) 10814 | -4/Factory | Build established: Sprinter 10950 | -4/Factory | Identified exit to Upper Caves 10950 | -4/Factory | Identified exit to Extension 10950 | -4/Factory | Identified exit to Armory 11112 | -4/Factory | Discovered new exit (range 15) 11159 | -4/Factory | Search patrols dispatched 11189 | -4/Factory | Crushed by falling debris 11197 | -4/Factory | Entered Armory 11220 | -4/Armory | Lost 3 parts (3u) 11277 | -4/Armory | Found Adv. Force Booster 11361 | -4/Armory | Core integrity fell below 50% 11399 | -4/Armory | Core integrity fell below 20% 11407 | -4/Armory | Lost 11 parts (2p9n) 11416 | -4/Armory | Destroyed by L-61 Swordsman with Power Sword Last Messages --------------- 11353_ Triggered Ambush Trap. 11353_ L-61 Swordsman emerges from a hatch in the floor. 11353_ S-27 Virus emerges from a hatch in the floor. 11354_ System corrupted: Substantial component data lost. 11355_ Cld. Nuclear Pulse Thruster severed. 11359_ Adv. Force Booster severed. 11361_ Component Storage disabled. 11361_ Cld. Nuclear Pulse Thruster destroyed. 11364_ Xenon Bombardment Thruster destroyed. 11376_ Cld. Nuclear Pulse Thruster destroyed. 11386_ Imp. Transmission Jammer severed. 11393_ C-35 Carver destroyed. 11396_ System corrupted: IFF burst signal emitted. 11408_ Adv. Melee Analysis Suite destroyed. 11408_ Slammed into C-35 Carver. 11411_ Slammed into Y-64 Sentinel. 11412_ Penetrated by Slug. 11412_ C-35 Carver destroyed. 11414_ Slammed into L-61 Swordsman. 11416_ System corrupted: Component data lost. Map ----- +----------------------------------------------------+ | | | | | | | | | | | | | | | | | | | | | | | ????????????????????????????????????????########## | | ??????????????????##?Y??????????????????# | | ??????????????????# ??????????????????# ![= | | ??????????????????# "????????????????# *![ | | ??????????????????#!= Y" ############??# ![] | | ??????????????????#!= "" + s #??# | | ??????????????????#!= # ######## #??# | | ??????????????????# ??# #??????# #??? | | ??????????????????####???## ##?????# #????? ?? | | ?????????????# ######## #?????# ########+#### | | ?????????????# #?????# | | ?????????????????######### #?????#c | | ?????????????????????????##c##?????#+##+#+## | | ??????????w????????????####%###### # | | ???????????????????????#l@sssYss + ]!! # | | ????????i??????????????#l######### ]!! # | | ????????l????????????? il??????????????????# | | ???????????????????? [[???????????????????# # | | ???????????????????# [[???????????????????# # | | ???????????????????# ????????????????????# # | | ???????????????????####???????????????????# # | | ??????????????????????????????????????????+ | | ??????????????????????????????????????????# | | ??????????????????????????????????????????# ### | | ??????????????????????????????????????????## ##?? | | ???????????????????????????????????????????? ???? | | ?????????????????????????????????????????????????? | | ?????????????????????????????????????????????????? | | ?????????????????????????????????????????????????? | | ?????????????????????????????????????????????????? | | ?????????????????????????????????????????????????? | | ?????????????????????????????????????????????????? | | ?????????????????????????????????????????????????? | | ?????????????????????????????????????????????????? | | ?????????????????????????????????????????????????? | | ?????????????????????????????????????????????????? | | ?????????????????????????????????????????????????? | | ?????????????????????????????????????????????????? | | ?????????????????????????????????????????????????? | +----------------------------------------------------+ Best States ------------- Heat Dissipation 82 Energy Generation 35 Energy Capacity 720 Matter Stores 300 Matter Capacity 300 Sight Range 16 Robot Scan Range 14 Terrain Scan Density 10 ECM Strength 2 Jamming Range 14 Cloak Strength 2 Additional Mass Support 9 Armor Coverage 150 Propulsion Shielding 66 Melee Speed Boost 20 Evasion (%) 66 Targeting Accuracy 16 Melee Accuracy 8 Recoil Reduction 2 Force Boost 40 Defensive Hacking 10 Item Schematics ----------------- Cesium-ion Thruster | -8/Materials | Scanalyzed Cld. Cesium-ion Thruster | -6/Factory | Scanalyzed Nuclear Pulse Array | -5/Factory | Scanalyzed Imp. Arc Thrower | -5/Zhirov | Free Exp. Optical Array | -5/Zhirov | Free Exp. Heat Sink | -5/Zhirov | Free Assault Drone Bay | -5/Zhirov | Free Matter Neutralizer | -4/Factory | Hacked Robot Schematics ------------------ None Fabricated ------------ Cesium-ion Thruster | x2 | -7/Factory Cesium-ion Thruster | x2 | -7/Factory Cesium-ion Thruster | x2 | -7/Factory Alien Tech Used ----------------- Integrated Dissipator Transdimensional Reconstructor Achievements -------------- None Challenges ------------ None Game ------ Seed CryofiberDimensionalGun Manual? 0 Play Time 03:33:49 Cumulative 115.6 hours Start 2023.11.20 @ 16:55:38 End 2023.11.21 @ 19:09:11 Sessions 1 Manual Loads 0 Difficulty Rogue Special Mode None Game No. 180 Rogue 177 Adventurer 3 Explorer 0 Win Type - Total 0 Types 0/0/0/0/0/0/0/0/0 Lore% 44 Gallery% 59 Achievement% 41 Wizard Run 0 Options --------- ASCII 0 Keyboard 0 Movement Mouse Keybinds 0 Fullscreen 2 Font 18/SmallcapsGlow Map View 76x50 Tactical HUD 1 Map Filters NONE Filters NONE Steam 1 RUN: dc9c0e93-b977-4a5e-b9ac-510db0c770b1